bitfinex/quotes_BTCUSD_20220303
["timestamp","ask_amount","ask_price","bid_price","bid_amount"]
[1646285927436,0.025,43419.0,43417.0,0.355618]
[1646285928034,0.025,43419.0,43418.0,0.358618]
[1646285928237,0.025,43419.0,43418.0,0.003]
[1646285929237,0.025,43419.0,43414.0,0.355618]
[1646285930139,0.025,43419.0,43414.0,0.52429544]
[1646285930337,0.02514511,43419.0,43414.0,0.52429544]
[1646285930974,0.02514511,43419.0,43414.0,0.82429544]
[1646285931171,0.02514511,43419.0,43414.0,0.52429544]
[1646285931372,0.025,43419.0,43414.0,0.52429544]
[1646285931575,0.02514511,43419.0,43414.0,0.52429544]
[1646285932577,0.025,43419.0,43414.0,0.52429544]
[1646285932776,0.02514511,43419.0,43414.0,0.52429544]
[1646285933778,0.025,43419.0,43414.0,0.52429544]
[1646285933978,0.02514511,43419.0,43414.0,0.52429544]
[1646285935024,0.025,43419.0,43414.0,0.52429544]
[1646285935221,0.02514511,43419.0,43414.0,0.52429544]
[1646285936225,0.025,43419.0,43414.0,0.52429544]
[1646285936422,0.02514511,43419.0,43414.0,0.52429544]
[1646285937423,0.025,43419.0,43414.0,0.52429544]
[1646285937622,0.02514511,43419.0,43414.0,0.52429544]
[1646285938470,0.025,43419.0,43414.0,0.52429544]
[1646285938675,0.025,43419.0,43414.0,0.16867744]
[1646285938876,0.02514511,43419.0,43414.0,0.17267744]
[1646285939674,0.025,43419.0,43414.0,0.17267744]
[1646285940074,0.02514511,43419.0,43415.0,0.355618]
[1646285940674,0.02514511,43419.0,43414.0,0.16867744]
[1646285941074,0.025,43419.0,43414.0,0.16867744]
[1646285941276,0.02514511,43419.0,43414.0,0.16867744]
[1646285941874,0.02514511,43419.0,43415.0,0.21641693]
[1646285942126,0.025,43419.0,43415.0,0.21641693]
[1646285942326,0.02514511,43419.0,43414.0,0.16867744]
[1646285942831,0.02514511,43419.0,43415.0,0.355618]
[1646285943025,0.02514511,43419.0,43415.0,0.35554561]
[1646285943427,0.025,43419.0,43415.0,0.35554561]
[1646285943628,0.02514511,43419.0,43415.0,0.35554561]
[1646285944328,0.02514511,43419.0,43414.0,0.46867744]
[1646285944530,0.025,43419.0,43414.0,0.46867744]
[1646285944830,0.02514511,43419.0,43414.0,0.46867744]
[1646285945029,0.02514511,43419.0,43415.0,0.35559]
[1646285945881,0.02514511,43419.0,43414.0,0.64714024]
[1646285945882,0.025,43419.0,43414.0,0.64714024]
[1646285946083,0.02514511,43419.0,43417.0,0.35559]
[1646285946484,0.02514511,43419.0,43416.0,0.057605]
[1646285946686,0.02514511,43419.0,43415.0,0.35559]
[1646285946884,0.02514511,43419.0,43417.0,0.004]
[1646285947084,0.025,43419.0,43417.0,0.004]
[1646285948388,0.025,43419.0,43415.0,0.35559]
[1646285949290,0.025,43419.0,43415.0,0.004]
[1646285949731,0.02514511,43419.0,43415.0,0.004]
[1646285950131,0.02282433,43419.0,43415.0,0.004]
[1646285950435,0.02282433,43419.0,43414.0,0.16867744]
[1646285950635,0.02267922,43419.0,43414.0,0.16867744]
[1646285950832,0.02282433,43419.0,43415.0,0.35559]
[1646285951033,0.02282433,43419.0,43414.0,0.16867744]
[1646285951231,0.01822433,43419.0,43414.0,0.16867744]
[1646285951433,0.01822433,43419.0,43415.0,0.35559]
[1646285951735,0.01807922,43419.0,43414.0,0.16867744]
[1646285951938,0.01822433,43419.0,43414.0,0.16867744]
[1646285952132,0.01822433,43419.0,43414.0,0.16236529]
[1646285952336,0.01822433,43419.0,43414.0,0.15018819]
[1646285952936,0.01807922,43419.0,43414.0,0.15018819]
[1646285953133,0.01822433,43419.0,43414.0,0.15018819]
[1646285954183,0.01807922,43419.0,43414.0,0.15018819]
[1646285954381,0.01822433,43419.0,43415.0,0.35559]
[1646285954587,0.01822433,43419.0,43414.0,0.15018819]
[1646285954783,0.01822433,43419.0,43415.0,0.35559]
[1646285954981,0.01822433,43419.0,43415.0,0.35959]
[1646285955382,0.01807922,43419.0,43415.0,0.35959]
[1646285955582,0.01822433,43419.0,43415.0,0.35959]
[1646285955783,0.01822433,43419.0,43416.0,0.057602]
[1646285955983,0.01822433,43419.0,43417.0,0.35559]
[1646285956183,0.01822433,43419.0,43418.0,0.15678003]
[1646285956384,0.01822433,43419.0,43418.0,0.51237003]
[1646285956583,0.01807922,43419.0,43418.0,0.51237003]
[1646285957141,0.01807922,43419.0,43418.0,0.35959]
[1646285958336,0.01807922,43419.0,43418.0,0.35559]
[1646285958940,0.01807922,43419.0,43418.0,0.36059]
[1646285959937,0.01807922,43419.0,43418.0,0.56838425]
[1646285960136,0.01807922,43419.0,43418.0,0.36059]
[1646285960337,0.01807922,43419.0,43418.0,0.35559]
[1646285960976,0.01807922,43419.0,43418.0,0.35959]
[1646285961176,0.01307922,43419.0,43418.0,0.53785489]
[1646285961574,0.01307922,43419.0,43418.0,0.35959]
[1646285962176,0.01307922,43419.0,43418.0,0.35559]
[1646285963877,0.00307922,43419.0,43418.0,0.35559]
[1646285965143,0.00307922,43419.0,43414.0,0.15018819]
[1646285965144,0.00307922,43419.0,43415.0,0.35559]
[1646285965739,7.481e-05,43419.0,43415.0,0.35559]
[1646285966541,0.00023835,43419.0,43415.0,0.35559]
[1646285967342,7.481e-05,43419.0,43415.0,0.35559]
[1646285967645,0.00023835,43419.0,43415.0,0.35559]
[1646285968672,7.481e-05,43419.0,43415.0,0.35559]
[1646285968875,0.00023276,43419.0,43415.0,0.35559]
[1646285969573,0.00023276,43419.0,43415.0,0.55845221]
[1646285969773,7.481e-05,43419.0,43417.0,0.35559]
[1646285970175,0.00023276,43419.0,43417.0,0.35559]
[1646285970575,0.00023276,43419.0,43418.0,0.0462]
[1646285970772,0.00023276,43419.0,43418.0,0.40179]
[1646285970971,7.481e-05,43419.0,43418.0,0.40179]
[1646285971771,7.481e-05,43419.0,43418.0,0.66274722]
[1646285972236,7.481e-05,43419.0,43418.0,0.8660494]
[1646285973233,7.481e-05,43419.0,43418.0,0.8700494]
[1646285973634,7.481e-05,43419.0,43418.0,0.60909218]
[1646285974234,7.481e-05,43419.0,43418.0,0.40579]
[1646285974533,7.481e-05,43419.0,43418.0,0.40179]
[1646285975234,7.481e-05,43419.0,43415.0,0.35559]
[1646285975438,0.14996067,43419.0,43413.0,0.005]
[1646285975636,7.481e-05,43419.0,43413.0,0.005]
[1646285975877,0.20974309,43415.0,43413.0,0.005]
[1646285976276,0.3,43414.0,43413.0,0.005]
[1646285976475,0.3,43414.0,43405.0,0.24189891]
[1646285976476,0.34161612,43414.0,43405.0,0.24189891]
[1646285976675,0.3,43413.0,43405.0,0.24189891]
[1646285976876,0.34161612,43414.0,43405.0,0.24189891]
[1646285978376,0.34161612,43414.0,43406.0,0.24161845]
[1646285982930,0.34161612,43414.0,43406.0,0.44914545]
[1646285983135,0.34161612,43414.0,43406.0,0.24661845]
[1646285984397,0.34161612,43414.0,43406.0,0.24161845]
[1646285984995,0.34161612,43414.0,43406.0,0.35559]
[1646285984996,0.33661612,43414.0,43406.0,0.35559]
[1646285985597,0.50961053,43414.0,43406.0,0.35559]
[1646285985800,0.33661612,43414.0,43406.0,0.35559]
[1646285987334,0.33661612,43414.0,43406.0,0.005]
[1646285988341,0.33661612,43414.0,43405.0,0.24189891]
[1646285989737,0.14488586,43414.0,43405.0,0.24189891]
[1646285992677,0.14488586,43414.0,43406.0,0.35559]
[1646285992877,0.14488586,43414.0,43405.0,0.24189891]
[1646285993077,0.14488586,43414.0,43407.0,0.35559]
[1646285993277,0.14488586,43414.0,43408.0,0.057618]
[1646285993676,0.14488586,43414.0,43405.0,0.04548898]
[1646285993876,0.14488586,43414.0,43407.0,0.35559]
[1646285994076,0.14488586,43414.0,43406.0,0.35559]
[1646285994277,0.14488586,43414.0,43408.0,0.21244936]
[1646285995326,0.37100258,43414.0,43408.0,0.21244936]
[1646285997130,0.37100258,43414.0,43408.0,0.21644936]
[1646285997530,0.14488586,43414.0,43408.0,0.21644936]
[1646285997730,0.14488586,43414.0,43409.0,0.35559]
[1646285997929,0.14488586,43414.0,43408.0,0.21644936]
[1646285998374,0.14488586,43414.0,43408.0,0.21244936]
[1646285998676,0.26368663,43413.0,43408.0,0.21244936]
[1646285999073,0.26368663,43413.0,43408.0,0.21744936]
[1646285999273,0.14488586,43414.0,43408.0,0.21744936]
[1646285999673,0.32305,43417.0,43408.0,0.21744936]
[1646286000075,0.14488586,43411.0,43408.0,0.21744936]
[1646286000475,0.14488586,43411.0,43408.0,0.21244936]
[1646286002932,0.14488586,43411.0,43410.0,0.35559]
[1646286003133,0.14488586,43411.0,43409.0,0.35559]
[1646286003533,0.14488586,43411.0,43410.0,0.35559]
[1646286003737,0.14488586,43411.0,43409.0,0.35559]
[1646286003934,0.14488586,43411.0,43408.0,0.21244936]
[1646286005536,0.14488586,43411.0,43409.0,0.35559]
[1646286005794,0.14488586,43411.0,43408.0,0.21244936]
[1646286007099,0.14488586,43411.0,43410.0,0.355618]
[1646286007297,0.14488586,43411.0,43409.0,0.355618]
[1646286009732,0.14488586,43411.0,43408.0,0.21244936]
[1646286009934,0.14488586,43411.0,43410.0,0.355618]
[1646286010138,0.4176,43418.0,43409.0,0.355618]
[1646286010337,0.13988586,43412.0,43409.0,0.355618]
[1646286010538,0.13988586,43412.0,43409.0,0.057617]
[1646286010937,0.13988586,43412.0,43408.0,0.21244936]
[1646286012141,0.13988586,43412.0,43408.0,0.19398524]
[1646286013040,0.13988586,43412.0,43409.0,0.355618]
[1646286015476,0.13988586,43412.0,43410.0,0.355618]
[1646286015678,0.13988586,43412.0,43409.0,0.355618]
[1646286015878,0.13988586,43412.0,43408.0,0.25160124]
[1646286016078,0.13988586,43412.0,43410.0,0.355618]
[1646286016277,0.13988586,43412.0,43409.0,0.355618]
[1646286016677,0.13988586,43412.0,43410.0,0.355618]
[1646286016881,0.13988586,43412.0,43408.0,0.25160124]
[1646286017142,0.13988586,43412.0,43409.0,0.355618]
[1646286017740,0.13988586,43412.0,43408.0,0.25160124]
[1646286017943,0.13988586,43412.0,43409.0,0.355618]
[1646286018641,0.13988586,43412.0,43408.0,0.25160124]
[1646286018845,0.13988586,43412.0,43408.0,0.19398524]
[1646286019242,0.13988586,43409.0,43408.0,0.19398524]
[1646286019543,0.13988586,43409.0,43400.0,0.1145]
[1646286019544,0.13988586,43409.0,43401.0,0.355618]
[1646286019940,0.13988586,43409.0,43403.0,0.004]
[1646286020140,0.13988586,43409.0,43404.0,0.64445974]
[1646286020346,0.13988586,43409.0,43405.0,0.18167283]
[1646286020542,0.13988586,43409.0,43406.0,0.355618]
[1646286020793,0.13988586,43409.0,43405.0,0.18167283]
[1646286020994,0.13988586,43409.0,43406.0,0.355618]
[1646286021993,0.13988586,43409.0,43405.0,0.18167283]
[1646286022196,0.13988586,43409.0,43406.0,0.355618]
[1646286022393,0.1467286,43416.0,43406.0,0.355618]
[1646286022592,0.13988586,43414.0,43406.0,0.655618]
[1646286023394,0.13988586,43414.0,43406.0,0.713236]
[1646286023794,0.13988586,43414.0,43413.0,0.18073864]
[1646286025932,0.13988586,43414.0,43413.0,0.18173864]
[1646286026632,0.13988586,43414.0,43413.0,0.53735664]
[1646286027033,0.13988586,43414.0,43413.0,0.59769294]
[1646286027241,0.00021997,43419.0,43414.0,0.355618]
[1646286027434,0.00021997,43419.0,43416.0,0.355618]
[1646286027435,7.481e-05,43419.0,43416.0,0.355618]
[1646286027632,7.481e-05,43419.0,43413.0,0.54107494]
[1646286027633,7.481e-05,43419.0,43418.0,0.355618]
[1646286027833,0.00021997,43419.0,43418.0,0.701818]
[1646286028033,0.00021997,43419.0,43418.0,0.61310537]
[1646286028291,0.00021997,43419.0,43418.0,0.88691309]
[1646286028492,0.00021997,43419.0,43418.0,1.18691309]
[1646286028693,7.481e-05,43419.0,43418.0,1.18691309]
[1646286030097,7.481e-05,43419.0,43418.0,1.19191309]
[1646286032126,7.481e-05,43419.0,43418.0,1.19791309]
[1646286033129,7.481e-05,43419.0,43418.0,0.89791309]
[1646286033327,7.481e-05,43419.0,43418.0,0.88691309]
[1646286034027,7.481e-05,43419.0,43418.0,0.89191309]
[1646286035432,0.00095427,43422.0,43418.0,0.406818]
[1646286035631,0.00095427,43422.0,43421.0,0.55452173]
[1646286042034,0.00095427,43422.0,43421.0,0.55752173]
[1646286043378,0.00095427,43422.0,43421.0,0.55452173]
[1646286050031,0.00095427,43422.0,43421.0,0.55752173]
[1646286051299,0.00095427,43422.0,43421.0,0.55452173]
[1646286052101,0.00095427,43422.0,43421.0,0.55752173]
[1646286052300,0.00095427,43422.0,43421.0,0.7631285]
[1646286052501,0.14003351,43424.0,43422.0,4.99904573]
[1646286052704,0.13988586,43424.0,43422.0,4.99904573]
[1646286052900,0.14003351,43424.0,43422.0,4.99904573]
[1646286053301,0.14003351,43424.0,43423.0,0.16304475]
[1646286053506,0.14003351,43424.0,43422.0,4.99904573]
[1646286054001,0.13988586,43424.0,43422.0,4.99904573]
[1646286054632,0.13980757,43424.0,43422.0,4.99904573]
[1646286055033,0.13980757,43423.0,43422.0,4.99904573]
[1646286057236,0.13980757,43423.0,43422.0,5.21262161]
[1646286057436,0.13980757,43423.0,43422.0,4.99904573]
[1646286063146,0.13980757,43423.0,43422.0,5.00204573]
[1646286066285,0.13980757,43423.0,43422.0,4.99904573]
[1646286067083,0.13980757,43423.0,43422.0,5.00204573]
[1646286070440,0.13980757,43423.0,43422.0,4.99904573]
[1646286072143,0.13980757,43423.0,43422.0,4.98060676]
[1646286073142,0.13980757,43423.0,43422.0,4.98360676]
[1646286074293,0.13980757,43423.0,43422.0,4.98060676]
[1646286075089,0.13980757,43423.0,43422.0,4.98360676]
[1646286076793,0.13980757,43423.0,43422.0,4.98060676]
[1646286077046,0.13980757,43423.0,43422.0,4.98360676]
[1646286078348,0.13980757,43423.0,43422.0,4.98060676]
[1646286085239,0.13980757,43423.0,43422.0,4.98460676]
[1646286085842,0.13980757,43423.0,43422.0,4.99308277]
[1646286086042,0.79542557,43423.0,43422.0,4.99308277]
[1646286086245,0.79542557,43423.0,43422.0,4.98460676]
[1646286086246,0.81847557,43423.0,43422.0,4.98460676]
[1646286086544,1.22688068,43423.0,43422.0,4.98060676]
[1646286086742,1.14916955,43423.0,43422.0,4.98060676]
[1646286086944,1.32894349,43423.0,43422.0,4.98060676]
[1646286087140,1.33294349,43423.0,43422.0,4.98060676]
[1646286087344,0.92453838,43423.0,43422.0,4.98060676]
[1646286087944,0.70224951,43423.0,43422.0,4.98060676]
[1646286088381,0.69824951,43423.0,43422.0,4.98060676]
[1646286088782,0.51847557,43423.0,43422.0,4.98060676]
[1646286089183,0.52347557,43423.0,43422.0,4.98060676]
[1646286090586,0.51847557,43423.0,43422.0,4.98060676]
[1646286091185,0.51947557,43423.0,43422.0,4.98060676]
[1646286091586,0.379668,43423.0,43422.0,4.98060676]
[1646286091784,0.81920987,43423.0,43422.0,4.98060676]
[1646286092241,1.22578165,43423.0,43422.0,4.98060676]
[1646286092441,1.33248392,43423.0,43422.0,4.98060676]
[1646286092838,0.92591214,43423.0,43422.0,4.98060676]
[1646286093039,0.92891214,43423.0,43422.0,4.98060676]
[1646286093538,0.87883887,43423.0,43422.0,4.98060676]
[1646286093740,0.98654114,43423.0,43422.0,4.98060676]
[1646286094441,0.98354114,43423.0,43422.0,4.98060676]
[1646286094839,0.68354114,43423.0,43422.0,4.98060676]
[1646286095038,0.68654114,43423.0,43422.0,4.98060676]
[1646286095241,0.98179092,43423.0,43422.0,4.98060676]
[1646286095443,0.98179092,43423.0,43422.0,4.94658072]
[1646286095640,1.02799092,43423.0,43422.0,4.94658072]
[1646286096286,1.12789092,43423.0,43422.0,4.94658072]
[1646286096489,1.26789092,43423.0,43422.0,0.00780392]
[1646286096688,0.02305,43415.0,43401.0,0.0084802]
[1646286096888,0.23944187,43408.0,43401.0,0.0084802]
[1646286097287,0.13954187,43408.0,43401.0,0.0084802]
[1646286097490,0.02305,43413.0,43401.0,0.0084802]
[1646286097491,0.13954187,43403.0,43401.0,0.0084802]
[1646286097690,0.355618,43406.0,43403.0,0.27908374]
[1646286098289,0.378668,43404.0,43403.0,0.27908374]
[1646286099092,0.382668,43404.0,43403.0,0.27908374]
[1646286100333,0.378668,43404.0,43403.0,0.27908374]
[1646286100538,0.02305,43404.0,43403.0,0.27908374]
[1646286101537,0.004,43409.0,43403.0,0.27908374]
[1646286101735,0.02305,43405.0,43403.0,0.27908374]
[1646286102134,0.02305,43405.0,43404.0,0.18475184]
[1646286102734,0.378668,43405.0,43404.0,0.18475184]
[1646286103388,0.003,43410.0,43404.0,0.18475184]
[1646286103584,0.02305,43408.0,43404.0,0.18475184]
[1646286103984,0.378668,43407.0,43404.0,0.18475184]
[1646286104189,0.02305,43407.0,43404.0,0.18475184]
[1646286104382,0.355618,43406.0,43404.0,0.18475184]
[1646286104583,0.03455,43411.0,43404.0,0.18475184]
[1646286104885,0.378668,43410.0,43404.0,0.18475184]
[1646286105083,0.003,43406.0,43404.0,0.18475184]
[1646286105482,0.355618,43405.0,43404.0,0.18475184]
[1646286105688,0.003,43406.0,43403.0,0.27908374]
[1646286105882,0.355618,43405.0,43403.0,0.27908374]
[1646286106081,0.378668,43405.0,43403.0,0.27908374]
[1646286106284,0.355618,43405.0,43403.0,0.27908374]
[1646286107159,0.005,43405.0,43403.0,0.27908374]
[1646286107558,0.355618,43404.0,43403.0,0.27908374]
[1646286107959,0.005,43405.0,43403.0,0.27908374]
[1646286108364,0.02305,43410.0,43403.0,0.27908374]
[1646286108560,0.02305,43408.0,43403.0,0.27908374]
[1646286108761,0.378668,43407.0,43403.0,0.27908374]
[1646286108963,0.355618,43406.0,43403.0,0.27908374]
[1646286109160,0.355618,43406.0,43403.0,0.28108374]
[1646286110563,0.355618,43406.0,43403.0,0.27908374]
[1646286111000,0.02305,43407.0,43403.0,0.27908374]
[1646286111199,0.02305,43407.0,43403.0,0.28008374]
[1646286111698,0.03555,43411.0,43403.0,0.28008374]
[1646286111897,0.02305,43407.0,43403.0,0.28008374]
[1646286112297,0.355618,43405.0,43403.0,0.27908374]
[1646286112600,0.355618,43404.0,43403.0,0.27908374]
[1646286112796,0.355618,43404.0,43403.0,0.26908374]
[1646286113602,0.002,43405.0,43403.0,0.26908374]
[1646286115234,0.006,43405.0,43403.0,0.26908374]
[1646286115736,0.355618,43404.0,43403.0,0.26908374]
[1646286116139,0.006,43405.0,43403.0,0.26908374]
[1646286116337,0.02305,43408.0,43403.0,0.26908374]
[1646286116535,0.378668,43407.0,43403.0,0.26908374]
[1646286119187,0.383668,43407.0,43403.0,0.26908374]
[1646286120387,0.378668,43407.0,43403.0,0.26908374]
[1646286120589,0.355618,43407.0,43403.0,0.26908374]
[1646286121188,0.378668,43407.0,43403.0,0.26908374]
[1646286121402,0.3,43408.0,43403.0,0.26908374]
[1646286121403,0.378668,43405.0,43403.0,0.26908374]
[1646286121593,0.724868,43404.0,43403.0,0.26908374]
[1646286121890,0.736368,43404.0,43403.0,0.26908374]
[1646286122185,0.99494304,43404.0,43403.0,0.26908374]
[1646286122384,0.722468,43404.0,43403.0,0.26908374]
[1646286122784,0.822368,43404.0,43403.0,0.26908374]
[1646286123186,0.880019,43404.0,43403.0,0.26908374]
[1646286124788,0.884019,43404.0,43403.0,0.26908374]
[1646286124986,1.114019,43404.0,43403.0,0.26908374]
[1646286125588,1.114019,43404.0,43403.0,0.02744963]
[1646286125799,1.114019,43404.0,43399.0,0.00015806]
[1646286125800,0.355618,43401.0,43399.0,0.00015806]
[1646286125998,0.355618,43399.0,43381.0,0.00617075]
[1646286126193,0.378668,43394.0,43393.0,0.00063237]
[1646286126392,0.678668,43394.0,43393.0,0.00063237]
[1646286127193,0.678668,43394.0,43384.0,0.28336323]
[1646286127395,0.678668,43394.0,43391.0,0.00015807]
[1646286128493,0.678668,43394.0,43390.0,0.00015807]
[1646286129538,0.678668,43394.0,43385.0,0.23744722]
[1646286129743,0.678668,43394.0,43390.0,0.00015808]
[1646286130343,0.678668,43394.0,43390.0,0.20232873]
[1646286130542,0.678668,43394.0,43390.0,0.00015808]
[1646286130740,0.678668,43394.0,43387.0,0.18245248]
[1646286130741,0.655618,43394.0,43387.0,0.18245248]
[1646286130942,0.355618,43394.0,43390.0,0.00015808]
[1646286132242,0.655618,43394.0,43387.0,0.16419668]
[1646286132641,0.713279,43394.0,43387.0,0.16419668]
[1646286132844,0.713279,43394.0,43383.0,0.0006324]
[1646286133296,0.99668826,43394.0,43381.0,0.00617075]
[1646286133497,0.713279,43394.0,43381.0,0.00617075]
[1646286133896,0.02305,43393.0,43381.0,0.20071659]
[1646286134098,0.355618,43392.0,43381.0,0.20071659]
[1646286134402,0.355618,43389.0,43381.0,0.00617075]
[1646286134599,0.29557976,43388.0,43381.0,0.00617075]
[1646286134799,0.355618,43387.0,43381.0,0.00617075]
[1646286135400,0.29587098,43386.0,43381.0,0.00617075]
[1646286135599,0.355618,43385.0,43381.0,0.00617075]
[1646286135800,0.29587098,43386.0,43385.0,0.1564699]
[1646286136000,0.185762,43386.0,43385.0,0.1564699]
[1646286136601,0.247436,43386.0,43385.0,0.1564699]
[1646286137440,0.477436,43386.0,43385.0,0.1564699]
[1646286137840,0.473436,43386.0,43385.0,0.1564699]
[1646286138743,0.415762,43386.0,43385.0,0.1564699]
[1646286139342,0.461962,43386.0,43385.0,0.1564699]
[1646286142795,0.761962,43386.0,43385.0,0.1564699]
[1646286142996,0.819637,43386.0,43385.0,0.1564699]
[1646286143595,0.761962,43386.0,43385.0,0.1564699]
[1646286144640,0.764962,43386.0,43385.0,0.1564699]
[1646286145953,0.761962,43386.0,43385.0,0.1564699]
[1646286147544,0.415762,43386.0,43385.0,0.1564699]
[1646286148142,0.4154963,43386.0,43385.0,0.1564699]
[1646286151202,0.41465629,43386.0,43385.0,0.1564699]
[1646286152642,0.41665629,43386.0,43385.0,0.1564699]
[1646286153845,0.232,43386.0,43385.0,0.1564699]
[1646286154243,0.587712,43386.0,43385.0,0.1564699]
[1646286154444,0.232,43386.0,43385.0,0.1564699]
[1646286154644,0.232,43386.0,43385.0,0.36353224]
[1646286155244,0.232,43386.0,43385.0,0.1584699]
[1646286155888,0.23,43386.0,43385.0,0.1564699]
[1646286156291,0.23,43386.0,43385.0,0.32276665]
[1646286156688,0.233,43386.0,43385.0,0.32276665]
[1646286157891,0.23,43386.0,43385.0,0.32276665]
[1646286158791,0.231,43386.0,43385.0,0.32276665]
[1646286159845,0.23,43386.0,43385.0,0.32276665]
[1646286160144,0.585712,43386.0,43385.0,0.1564699]
[1646286160548,0.587712,43386.0,43385.0,0.1564699]
[1646286161949,0.585712,43386.0,43385.0,0.1564699]
[1646286162149,0.62103946,43386.0,43385.0,0.1564699]
[1646286162649,0.62503946,43386.0,43385.0,0.1564699]
[1646286163889,0.62103946,43386.0,43385.0,0.1564699]
[1646286164291,0.26532746,43386.0,43385.0,0.1564699]
[1646286164692,0.26532746,43386.0,43385.0,0.1574699]
[1646286164891,0.62103946,43386.0,43385.0,0.1574699]
[1646286165891,0.10896291,43386.0,43385.0,0.1574699]
[1646286166293,0.14393081,43386.0,43385.0,0.1574699]
[1646286166694,0.14593081,43386.0,43385.0,0.1574699]
[1646286168559,0.37793081,43386.0,43385.0,0.1564699]
[1646286169958,0.37393081,43386.0,43385.0,0.1564699]
[1646286170561,0.37693081,43386.0,43385.0,0.1564699]
[1646286171801,0.37393081,43386.0,43385.0,0.1564699]
[1646286172000,0.67393081,43386.0,43385.0,0.1564699]
[1646286172200,0.37393081,43386.0,43385.0,0.1564699]
[1646286175847,0.37793081,43386.0,43385.0,0.1564699]
[1646286176247,0.38193081,43386.0,43385.0,0.1564699]
[1646286177448,0.43960281,43386.0,43385.0,0.1564699]
[1646286177651,0.43160281,43386.0,43385.0,0.1564699]
[1646286180006,0.43460281,43386.0,43385.0,0.1564699]
[1646286181206,0.73160281,43386.0,43385.0,0.1564699]
[1646286181433,1.12233275,43386.0,43385.0,0.1564699]
[1646286181708,1.43430674,43386.0,43385.0,0.1564699]
[1646286181908,1.58706375,43386.0,43385.0,0.1564699]
[1646286182140,1.73706375,43386.0,43385.0,0.13491809]
[1646286182340,1.89390597,43386.0,43385.0,0.13491809]
[1646286183542,1.42815204,43386.0,43385.0,0.13491809]
[1646286183946,1.27815204,43386.0,43385.0,0.13491809]
[1646286184241,1.52805204,43386.0,43385.0,0.13491809]
[1646286185042,1.22120982,43386.0,43385.0,0.13491809]
[1646286185241,1.21820982,43386.0,43385.0,0.13491809]
[1646286187392,1.11830982,43386.0,43385.0,0.13491809]
[1646286188091,1.10678982,43386.0,43385.0,0.13491809]
[1646286190934,1.06058982,43386.0,43385.0,0.13491809]
[1646286191135,1.0649193,43386.0,43385.0,0.13491809]
[1646286192236,1.0649193,43386.0,43385.0,0.1165293]
[1646286192637,0.7418693,43386.0,43385.0,0.1165293]
[1646286192840,0.66983982,43386.0,43385.0,0.1165293]
[1646286193041,0.47393081,43386.0,43385.0,0.1165293]
[1646286193289,0.37393081,43386.0,43385.0,0.1165293]
[1646286195591,0.43160281,43386.0,43385.0,0.1165293]
[1646286196796,0.56983982,43386.0,43385.0,0.1165293]
[1646286197072,0.73160281,43386.0,43385.0,0.1165293]
[1646286197270,0.86983982,43386.0,43385.0,0.1165293]
[1646286197769,0.43160281,43386.0,43385.0,0.1165293]
[1646286198369,0.37393081,43386.0,43385.0,0.1165293]
[1646286199373,0.2649679,43386.0,43385.0,0.1165293]
[1646286199673,0.2649679,43386.0,43385.0,0.4722423]
[1646286199674,0.23,43386.0,43385.0,0.4722423]
[1646286200072,0.23,43386.0,43385.0,0.4742423]
[1646286201294,0.23,43386.0,43385.0,0.4722423]
[1646286201996,0.23,43386.0,43385.0,0.5224423]
[1646286203194,0.23,43386.0,43385.0,0.5184423]
[1646286203895,0.2297343,43386.0,43385.0,0.5184423]
[1646286205144,0.069168,43399.0,43393.0,0.06993]
[1646286205345,0.069168,43399.0,43393.0,0.24946281]
[1646286205745,0.293634,43398.0,43393.0,0.24946281]
[1646286205945,0.01152,43397.0,43393.0,0.24946281]
[1646286206345,0.293634,43398.0,43393.0,0.24946281]
[1646286206546,0.293634,43398.0,43391.0,0.18895265]
[1646286206945,0.115314,43396.0,43391.0,0.18895265]
[1646286207148,0.293634,43395.0,43388.0,0.00014358]
[1646286207344,0.057656,43396.0,43388.0,0.00014358]
[1646286207545,0.3,43399.0,43391.0,0.07136584]
[1646286207746,0.01152,43400.0,43391.0,0.07136584]
[1646286208608,0.069168,43400.0,43395.0,0.21310583]
[1646286209609,0.293634,43399.0,43395.0,0.21310583]
[1646286210411,0.075168,43400.0,43395.0,0.21310583]
[1646286211110,0.075168,43400.0,43394.0,0.20923161]
[1646286211311,0.293634,43399.0,43394.0,0.20923161]
[1646286211515,0.069168,43400.0,43394.0,0.20923161]
[1646286211712,0.12682034,43400.0,43394.0,0.20923161]
[1646286212147,0.004,43399.0,43394.0,0.47096488]
[1646286212943,0.293634,43398.0,43394.0,0.47096488]
[1646286213146,0.004,43399.0,43394.0,0.47096488]
[1646286213345,0.34530034,43400.0,43394.0,0.47096488]
[1646286213746,0.293634,43399.0,43394.0,0.47096488]
[1646286213944,0.287648,43400.0,43394.0,0.47096488]
[1646286214144,0.293634,43399.0,43394.0,0.47096488]
[1646286214344,0.291648,43400.0,43395.0,0.15656127]
[1646286214544,0.293634,43398.0,43394.0,0.20923161]
[1646286214746,0.351292,43399.0,43388.0,0.00057434]
[1646286214950,0.05766,43396.0,43388.0,0.00014374]
[1646286215147,0.05766,43396.0,43389.0,0.00057493]
[1646286215788,0.05766,43396.0,43390.0,0.25450672]
[1646286215994,0.293634,43395.0,43390.0,0.25450672]
[1646286216388,0.06066,43396.0,43390.0,0.25450672]
[1646286216590,0.293634,43395.0,43390.0,0.25450672]
[1646286216988,0.06066,43396.0,43390.0,0.25450672]
[1646286217389,0.05766,43396.0,43390.0,0.25450672]
[1646286217991,0.43823701,43399.0,43393.0,0.16786753]
[1646286218193,0.299169,43400.0,43394.0,0.2173243]
[1646286218194,0.293634,43398.0,43394.0,0.2173243]
[1646286218391,0.293634,43398.0,43393.0,0.16786753]
[1646286219393,0.293634,43398.0,43390.0,0.25450672]
[1646286219667,0.293634,43396.0,43390.0,0.25450672]
[1646286219862,0.115316,43397.0,43390.0,0.25450672]
[1646286220063,0.293634,43396.0,43390.0,0.25450672]
[1646286220463,0.115316,43397.0,43388.0,0.39975054]
[1646286220762,0.115316,43397.0,43388.0,0.39959214]
[1646286220962,0.293634,43396.0,43388.0,0.16250579]
[1646286221166,0.115316,43397.0,43388.0,0.16250579]
[1646286221367,0.293634,43396.0,43388.0,0.00015839]
[1646286221565,0.593634,43396.0,43388.0,0.00015839]
[1646286221765,0.59335901,43396.0,43388.0,0.00015839]
[1646286221965,0.73159602,43396.0,43389.0,0.20692566]
[1646286222169,0.73559602,43396.0,43389.0,0.20692566]
[1646286222667,0.73559602,43396.0,43388.0,0.00016765]
[1646286222870,0.73559602,43396.0,43388.0,0.27160981]
[1646286223324,0.73159602,43396.0,43388.0,0.27160981]
[1646286223724,0.38935901,43396.0,43389.0,0.18518657]